bitfinex/quotes_SOLUSD_20250917
["timestamp","ask_amount","ask_price","bid_price","bid_amount"]
[1758116003469,5.98272167,235.68,235.64,0.03]
[1758116003673,39.14272167,235.68,235.64,0.03]
[1758116003979,41.60144256,235.68,235.64,0.03]
[1758116004178,8.44144256,235.68,235.64,0.03]
[1758116004488,0.28341297,235.68,235.64,0.03]
[1758116004677,0.28341297,235.69,235.67,0.73]
[1758116004986,33.14,235.68,235.67,0.73]
[1758116005184,0.28341297,235.69,235.67,0.03]
[1758116005488,37.73498818,235.68,235.67,0.03]
[1758116006066,41.97802959,235.68,235.67,0.03]
[1758116006492,45.89301777,235.68,235.67,0.03]
[1758116006692,12.75301777,235.68,235.67,0.03]
[1758116006996,45.91301777,235.68,235.67,0.03]
[1758116007369,56.5206213,235.68,235.64,1e-08]
[1758116007664,3.91498818,235.65,235.64,1e-08]
[1758116007866,37.35840115,235.65,235.64,1e-08]
[1758116008175,42.28198273,235.65,235.64,1e-08]
[1758116009297,86.84884459,235.65,235.59,0.03]
[1758116009500,3.91498818,235.6,235.59,0.03]
[1758116009670,0.28341297,235.6,235.59,0.03]
[1758116009869,33.44341297,235.6,235.59,0.03]
[1758116010286,41.60288332,235.6,235.59,0.03]
[1758116011300,37.70789514,235.6,235.59,0.73]
[1758116011712,33.46341297,235.6,235.59,0.73]
[1758116011880,4.52789514,235.6,235.59,0.73]
[1758116012071,37.70789514,235.6,235.59,0.03]
[1758116012798,41.62288332,235.6,235.59,0.03]
[1758116012973,42.30288332,235.6,235.59,0.03]
[1758116013374,42.30288332,235.6,235.53,0.2]
[1758116013375,52.91408875,235.6,235.53,0.2]
[1758116013574,3.91498818,235.54,235.53,0.2]
[1758116013790,33.18,235.54,235.53,0.2]
[1758116013986,33.46341297,235.54,235.53,0.2]
[1758116014393,37.70897635,235.54,235.53,0.2]
[1758116015289,38.37897635,235.54,235.53,1e-08]
[1758116015483,42.29396453,235.54,235.52,1e-08]
[1758116015683,0.67,235.53,235.52,1e-08]
[1758116016491,15.53010274,235.53,235.5,1e-08]
[1758116016692,3.91498818,235.51,235.5,1e-08]
[1758116017085,4.58498818,235.51,235.5,1e-08]
[1758116018468,8.83109237,235.51,235.5,1e-08]
[1758116018671,8.16109237,235.51,235.5,1e-08]
[1758116018897,8.83109237,235.51,235.5,1e-08]
[1758116019797,4.24610419,235.51,235.5,1e-08]
[1758116019994,8.16109237,235.51,235.5,1e-08]
[1758116020196,41.34109237,235.51,235.5,1e-08]
[1758116020400,37.42610419,235.51,235.5,1e-08]
[1758116020582,41.34109237,235.51,235.5,1e-08]
[1758116020788,42.01109237,235.51,235.5,1e-08]
[1758116021793,73.85687385,235.51,235.45,0.06]
[1758116021989,3.91498818,235.46,235.45,0.06]
[1758116022302,37.09498818,235.46,235.45,0.06]
[1758116022471,33.18,235.46,235.45,0.06]
[1758116022677,4.24700586,235.46,235.45,0.06]
[1758116022890,41.64540701,235.46,235.45,0.06]
[1758116023489,37.73041883,235.46,235.45,0.06]
[1758116023691,41.64540701,235.46,235.45,0.06]
[1758116024798,4.53041883,235.46,235.45,0.75]
[1758116025004,0.28341297,235.46,235.45,0.75]
[1758116025300,33.18,235.46,235.45,0.75]
[1758116025499,37.42700586,235.46,235.45,0.75]
[1758116026400,41.34199404,235.46,235.45,0.06]
[1758116026597,37.42700586,235.46,235.45,0.06]
[1758116026792,37.42700586,235.46,235.45,0.75]
[1758116026999,37.71041883,235.46,235.45,0.75]
[1758116027202,33.46341297,235.46,235.45,0.75]
[1758116027500,0.28341297,235.46,235.45,0.75]
[1758116027703,0.28341297,235.53,235.45,8.91216715]
[1758116027900,33.28,235.52,235.51,3.91498818]
[1758116028086,33.56341297,235.52,235.49,0.69]
[1758116028285,3.91498818,235.51,235.47,0.69]
[1758116028481,33.58341297,235.5,235.47,0.69]
[1758116028913,3.91498818,235.49,235.45,0.06]
[1758116029210,33.58341297,235.48,235.46,0.69]
[1758116030090,37.49840115,235.48,235.45,0.06]
[1758116030309,3.91498818,235.47,235.45,0.06]
[1758116030506,37.51840115,235.46,235.45,0.06]
[1758116030711,41.76540701,235.46,235.45,0.06]
[1758116031198,33.60341297,235.46,235.45,0.06]
[1758116031396,0.28341297,235.46,235.45,0.75]
[1758116031592,33.32,235.46,235.45,0.75]
[1758116033305,4.53038904,235.47,235.45,0.75]
[1758116033610,33.34,235.46,235.45,0.06]
[1758116034706,37.58700586,235.46,235.45,0.06]
[1758116035411,8.16199404,235.46,235.45,0.06]
[1758116035586,37.58700586,235.46,235.45,0.06]
[1758116035787,37.87041883,235.46,235.45,0.06]
[1758116036796,0.28341297,235.48,235.45,4.66498818]
[1758116036999,33.32,235.47,235.46,4.60498818]
[1758116037502,33.32,235.47,235.45,0.06]
[1758116037807,33.32,235.47,235.45,0.75]
[1758116038924,33.60341297,235.47,235.45,0.75]
[1758116039295,33.60341297,235.47,235.46,0.69]
[1758116039296,33.32,235.47,235.46,0.69]
[1758116039491,33.32,235.47,235.45,0.06]
[1758116039714,33.32,235.47,235.45,0.75]
[1758116040333,11.31480978,235.52,235.45,0.75]
[1758116040334,0.28341297,235.51,235.46,2.21897046]
[1758116040632,0.28341297,235.51,235.47,2.21897046]
[1758116040924,33.28,235.5,235.49,1.52897046]
[1758116041132,0.28341297,235.54,235.49,2.21897046]
[1758116041301,7.21542513,235.55,235.53,1.52897046]
[1758116041501,33.28,235.54,235.53,1.52897046]
[1758116041721,33.3,235.54,235.53,1.52897046]
[1758116041916,40.51542513,235.55,235.53,0.69]
[1758116042117,40.51542513,235.55,235.54,2.21897046]
[1758116042716,40.51542513,235.55,235.5,0.69]
[1758116042919,40.51542513,235.55,235.54,1.52897046]
[1758116043521,44.76080827,235.55,235.54,1.52897046]
[1758116043719,7.21542513,235.55,235.54,3.91711587]
[1758116043921,40.51542513,235.55,235.54,3.91711587]
[1758116044805,7.21542513,235.55,235.54,3.91711587]
[1758116045016,0.03,235.6,235.54,8.87267925]
[1758116045230,0.03,235.6,235.59,3.91711587]
[1758116045446,33.33,235.6,235.59,3.91711587]
[1758116046314,0.03,235.6,235.59,3.91711587]
[1758116046515,33.33,235.6,235.59,3.91711587]
[1758116046722,37.57448217,235.6,235.59,3.91711587]
[1758116047114,37.55448217,235.6,235.59,3.91711587]
[1758116047315,37.55448217,235.6,235.58,3.91711587]
[1758116047520,37.55448217,235.6,235.59,3.91711587]
[1758116047720,37.55448217,235.6,235.55,0.71]
[1758116047961,0.94341297,235.59,235.54,3.91711587]
[1758116048134,0.28341297,235.59,235.54,3.91711587]
[1758116048448,0.66,235.58,235.53,3.91711587]
[1758116048652,34.22341297,235.57,235.53,3.91711587]
[1758116048854,33.28,235.56,235.5,3.91711587]
[1758116049018,4.20052884,235.55,235.48,3.91711587]
[1758116049354,4.57711587,235.54,235.47,3.91711587]
[1758116049515,34.22341297,235.53,235.47,3.91711587]
[1758116049720,34.22341297,235.53,235.48,3.91711587]
[1758116049945,4.90592391,235.52,235.48,3.91711587]
[1758116050146,21.25241086,235.6,235.45,0.06]
[1758116050147,0.28341297,235.51,235.49,3.91711587]
[1758116050352,0.28341297,235.55,235.5,4.62711587]
[1758116050555,4.52829414,235.58,235.54,3.91711587]
[1758116050773,33.3,235.57,235.56,3.91711587]
[1758116051059,33.3,235.57,235.55,3.91711587]
[1758116051234,33.96,235.57,235.55,3.91711587]
[1758116051435,33.58341297,235.56,235.55,3.91711587]
[1758116051843,37.82861589,235.56,235.55,3.91711587]
[1758116052036,37.82861589,235.56,235.53,3.91711587]
[1758116052243,4.57711587,235.55,235.45,0.06]
[1758116052549,4.57711587,235.55,235.47,3.91711587]
[1758116052550,4.20052884,235.54,235.47,3.91711587]
[1758116052731,33.3,235.53,235.47,3.91711587]
[1758116052931,0.28341297,235.52,235.47,3.91711587]
[1758116053132,0.66,235.51,235.45,0.06]
[1758116053332,33.58341297,235.5,235.47,3.91711587]
[1758116053553,34.24341297,235.5,235.47,3.91711587]
[1758116054053,37.82986465,235.5,235.47,3.91711587]
[1758116054646,33.58341297,235.5,235.47,3.91711587]
[1758116054954,0.28341297,235.52,235.48,0.71]
[1758116055148,33.28,235.51,235.49,3.91711587]
[1758116055659,0.28341297,235.5,235.48,3.91711587]
[1758116056168,4.5297297,235.5,235.48,3.91711587]
[1758116056336,4.5297297,235.5,235.46,3.91711587]
[1758116056961,5.1897297,235.5,235.46,3.91711587]
[1758116057139,15.80544095,235.5,235.46,3.91711587]
[1758116057338,0.66,235.49,235.45,0.06]
[1758116057545,33.56341297,235.48,235.45,3.97711587]
[1758116057745,34.22341297,235.48,235.45,3.97711587]
[1758116057946,4.24682549,235.47,235.45,3.97711587]
[1758116058262,0.28341297,235.46,235.45,0.06]
[1758116058443,0.28341297,235.46,235.45,3.97711587]
[1758116059048,0.28341297,235.47,235.45,0.06]
[1758116059250,0.28341297,235.47,235.46,3.91711587]
[1758116059660,0.28341297,235.47,235.45,0.06]
[1758116059856,0.66,235.46,235.45,0.06]
[1758116060174,4.90700586,235.46,235.45,0.06]
[1758116062184,37.50700586,235.46,235.45,0.06]
[1758116062460,37.50700586,235.46,235.45,3.97711587]
[1758116062662,38.16700586,235.46,235.45,0.06]
[1758116064284,52.70163638,235.46,235.43,1e-08]
[1758116064571,3.91711587,235.44,235.43,1e-08]
[1758116064947,4.57711587,235.44,235.43,1e-08]
[1758116065663,0.66,235.44,235.43,1e-08]
[1758116065860,33.94,235.44,235.43,1e-08]
[1758116066377,33.28,235.44,235.43,2.39009855]
[1758116066676,33.28,235.44,235.43,1e-08]
[1758116066857,33.56341297,235.44,235.43,1e-08]
[1758116067751,0.66,235.47,235.43,1e-08]
[1758116068078,4.53025022,235.47,235.45,2.39009854]
[1758116068279,33.28,235.46,235.43,1e-08]
[1758116068449,33.28,235.45,235.44,2.39009854]
[1758116069168,33.94,235.45,235.43,1e-08]
[1758116069373,0.94341297,235.44,235.43,1e-08]
[1758116069867,3.33351151,235.44,235.43,1e-08]
[1758116070280,7.58087814,235.44,235.43,1e-08]
[1758116071272,37.8107796,235.44,235.43,1e-08]
[1758116071476,38.4707796,235.44,235.43,1e-08]
[1758116072172,44.17825307,235.44,235.43,1e-08]
[1758116072875,5.70747347,235.43,235.42,1e-08]
[1758116073381,6.36747347,235.43,235.42,1e-08]
[1758116074365,10.61502051,235.43,235.42,1e-08]
[1758116076784,10.61502051,235.43,235.38,1e-08]
[1758116076785,33.97388811,235.43,235.38,1e-08]
[1758116076968,5.70747347,235.39,235.38,1e-08]
[1758116077165,38.96747347,235.39,235.38,1e-08]
[1758116077370,39.68747347,235.39,235.38,1e-08]
[1758116078273,43.9357423,235.39,235.38,1e-08]
[1758116079697,44.21915527,235.39,235.38,1e-08]
[1758116080496,91.04131144,235.39,235.21,5.90747347]
[1758116080699,5.70747347,235.27,235.21,5.90747347]
[1758116080995,33.54341297,235.26,235.22,0.71]
[1758116081168,5.70747347,235.25,235.21,0.2]
[1758116081485,39.25088644,235.24,235.21,0.2]
[1758116081673,33.54341297,235.24,235.21,0.91]
[1758116082068,39.97088644,235.24,235.21,0.2]
[1758116082298,4.25133917,235.22,235.21,0.2]
[1758116082470,37.79475214,235.22,235.21,0.2]
[1758116082885,43.50222561,235.22,235.21,0.2]
[1758116084179,0.28341297,235.22,235.21,0.91]
[1758116084376,33.26,235.22,235.21,0.2]
[1758116084584,33.54341297,235.22,235.21,0.2]
[1758116085301,39.25088644,235.22,235.21,0.2]
[1758116085594,39.97088644,235.22,235.21,0.2]
[1758116086293,10.96222561,235.22,235.21,0.2]
[1758116086500,43.56222561,235.22,235.21,0.2]
[1758116086794,44.28222561,235.22,235.21,0.2]
[1758116087304,44.28222561,235.22,235.19,0.2]
[1758116087305,5.70747347,235.2,235.19,0.2]
[1758116087600,5.99088644,235.2,235.19,0.2]
[1758116087791,40.09088644,235.2,235.19,0.2]
[1758116088174,34.38341297,235.2,235.19,0.2]
[1758116088396,40.09088644,235.2,235.19,0.2]
[1758116088578,44.34258712,235.2,235.19,0.2]
[1758116089499,44.34258712,235.2,235.18,1e-08]
[1758116089500,57.08258712,235.2,235.18,1e-08]
[1758116089701,18.44747347,235.19,235.18,1e-08]
[1758116090196,18.44747347,235.19,235.05,0.71]
[1758116090197,19.16747347,235.19,235.05,0.71]
[1758116090382,12.74,235.17,235.05,0.71]
[1758116090585,15.16689655,235.16,235.05,0.71]
[1758116090781,33.4,235.15,235.05,0.71]
[1758116090998,5.99088644,235.14,235.07,5.70747347]
[1758116091180,33.4,235.13,235.08,0.71]
[1758116091375,0.28341297,235.12,235.09,0.71]
[1758116091602,33.42,235.11,235.1,6.41747347]
[1758116092105,33.42,235.11,235.1,0.71]
[1758116092778,33.42,235.11,235.1,6.41747347]
[1758116092999,0.28341297,235.15,235.1,6.41747347]
[1758116093192,0.28341297,235.15,235.11,0.71]
[1758116093383,0.28341297,235.15,235.13,5.70747347]
[1758116093710,0.28341297,235.22,235.14,5.70747347]
[1758116093899,33.42,235.21,235.18,5.70747347]
[1758116094102,0.28341297,235.2,235.15,6.41747347]
[1758116094399,10.62727139,235.25,235.19,5.70747347]
[1758116094400,5.70747347,235.25,235.19,5.70747347]
[1758116094573,33.72341297,235.24,235.2,0.71]
[1758116094779,33.44,235.23,235.21,0.71]
[1758116094989,33.44,235.23,235.18,0.71]
[1758116095189,33.44,235.23,235.19,6.41747347]
[1758116095385,33.44,235.22,235.2,6.41747347]
[1758116095607,33.44,235.22,235.2,0.71]
[1758116096005,0.28341297,235.25,235.21,6.41747347]
[1758116096191,33.44,235.22,235.21,0.71]
[1758116096400,0.28341297,235.31,235.22,4.25133917]
[1758116096710,33.44,235.3,235.23,0.67]
[1758116096889,0.28341297,235.29,235.23,0.67]
[1758116097314,0.28341297,235.29,235.24,5.70747347]
[1758116097513,0.28341297,235.29,235.25,0.67]
[1758116097716,0.28341297,235.3,235.27,5.70747347]
[1758116097889,0.28341297,235.34,235.29,5.70747347]
[1758116098090,0.28341297,235.34,235.3,6.37747347]
[1758116098292,33.48,235.33,235.3,6.37747347]
[1758116098512,0.96341297,235.39,235.32,5.70747347]
[1758116098823,33.48,235.38,235.34,5.70747347]
[1758116098994,0.28341297,235.37,235.33,6.37747347]
[1758116099620,0.28341297,235.37,235.33,5.70747347]
[1758116099829,0.28341297,235.37,235.34,0.67]
[1758116100031,33.48,235.36,235.35,0.67]
[1758116100230,33.48,235.36,235.35,5.70747347]
[1758116100901,0.31341297,235.44,235.35,10.62642362]
[1758116101104,0.03,235.44,235.43,5.70747347]
[1758116101301,0.03,235.44,235.43,6.37747347]
[1758116101522,0.03,235.47,235.43,6.37747347]
[1758116101722,0.03,235.47,235.46,5.70747347]
[1758116101924,0.03,235.47,235.44,6.37747347]
[1758116102238,0.31341297,235.47,235.42,0.67]
[1758116102395,0.31341297,235.47,235.44,5.70747347]
[1758116102818,0.31341297,235.47,235.44,6.37747347]
[1758116103536,10.94774579,235.47,235.4,0.67]
[1758116103700,10.94774579,235.47,235.4,6.37747347]
[1758116103901,5.24027232,235.47,235.4,6.37747347]
[1758116104203,4.56027232,235.47,235.41,5.70747347]
[1758116104404,4.56027232,235.47,235.37,0.69]
[1758116104405,10.98774579,235.47,235.37,0.69]
[1758116104612,5.70747347,235.46,235.39,5.70747347]
[1758116104914,6.71088644,235.45,235.38,5.70747347]
[1758116105096,9.9548401,235.44,235.37,6.39747347]
[1758116105302,5.70747347,235.42,235.35,5.70747347]
[1758116105628,33.78341297,235.41,235.36,6.39747347]
[1758116105824,33.78341297,235.41,235.37,6.39747347]
[1758116106403,33.78341297,235.41,235.39,5.70747347]
[1758116106612,33.78341297,235.41,235.39,6.39747347]
[1758116107024,33.78341297,235.41,235.4,5.70747347]
[1758116107326,33.5,235.45,235.4,6.39747347]
[1758116107543,33.5,235.45,235.44,5.70747347]
[1758116107723,0.03,235.47,235.44,6.39747347]
[1758116108039,33.52,235.45,235.35,14.93141705]
[1758116108219,33.52,235.45,235.44,5.70747347]
[1758116108419,33.52,235.45,235.4,0.69]
[1758116108745,0.72,235.44,235.39,5.70747347]
[1758116108933,0.28341297,235.43,235.39,5.70747347]
[1758116109342,0.72,235.42,235.35,0.75]
[1758116109635,0.28341297,235.41,235.36,5.70747347]
[1758116109941,0.28341297,235.41,235.37,5.70747347]
[1758116110148,0.72,235.4,235.36,5.70747347]
[1758116110355,33.80341297,235.39,235.35,0.06]
[1758116110725,34.52341297,235.39,235.35,0.06]
[1758116110925,34.52341297,235.39,235.35,5.76747347]
[1758116111121,34.52341297,235.39,235.35,0.06]
[1758116111122,4.96844931,235.38,235.35,0.06]
[1758116111347,0.28341297,235.37,235.35,0.06]
[1758116112450,0.72,235.41,235.36,0.69]
[1758116112451,0.28341297,235.38,235.36,0.69]
[1758116112759,0.28341297,235.38,235.37,5.70747347]
[1758116113051,0.28341297,235.38,235.36,0.69]
[1758116113052,33.78341297,235.38,235.36,5.70747347]
[1758116113225,38.03192878,235.38,235.35,5.76747347]
[1758116114341,0.72,235.37,235.35,0.06]
[1758116114542,0.28341297,235.36,235.35,0.06]
[1758116115226,4.5322233,235.36,235.35,0.06]
[1758116115433,5.2522233,235.36,235.35,0.06]
[1758116115629,10.95969677,235.36,235.35,0.06]
[1758116116236,5.2522233,235.36,235.35,0.06]
[1758116116442,33.76341297,235.36,235.35,0.06]
[1758116117855,0.28341297,235.36,235.35,0.06]
[1758116118150,10.61899476,235.43,235.35,6.45747347]
[1758116118151,0.28341297,235.42,235.35,6.45747347]
[1758116118353,33.48,235.41,235.38,5.70747347]
[1758116118779,1.00341297,235.4,235.35,0.06]
[1758116119138,0.28341297,235.4,235.36,5.70747347]
[1758116119460,0.28341297,235.4,235.39,5.70747347]
[1758116119645,0.28341297,235.43,235.39,5.70747347]
[1758116119962,34.22,235.42,235.38,5.70747347]
[1758116120161,0.28341297,235.41,235.35,0.06]
[1758116120348,34.22,235.4,235.37,5.70747347]
[1758116120548,0.28341297,235.39,235.37,5.70747347]
[1758116120861,0.72,235.38,235.35,0.06]
[1758116121045,0.28341297,235.37,235.35,0.06]
[1758116121355,33.5,235.36,235.35,0.06]
[1758116121663,38.46881033,235.36,235.35,0.06]
[1758116122040,44.1762838,235.36,235.35,0.06]
[1758116123063,54.79830963,235.36,235.32,0.06]
[1758116123262,5.70747347,235.33,235.32,0.06]
[1758116123564,9.95682544,235.33,235.32,0.06]
[1758116123752,10.67682544,235.33,235.32,0.06]
[1758116124264,10.67682544,235.33,235.3,0.06]
[1758116124265,21.58361834,235.33,235.3,1e-08]
[1758116124470,5.70747347,235.31,235.3,1e-08]
[1758116124665,5.99088644,235.31,235.3,1e-08]
[1758116124867,1.00341297,235.31,235.3,1e-08]
[1758116125059,40.23088644,235.31,235.3,1e-08]
[1758116125646,44.48059958,235.31,235.3,1e-08]
[1758116125861,42.70190155,235.31,235.3,1e-08]
[1758116127746,55.44190155,235.31,235.3,1e-08]
[1758116129680,51.47312611,235.31,235.3,1e-08]
[1758116129859,55.40190155,235.31,235.3,1e-08]
[1758116131164,51.47312611,235.31,235.3,1e-08]
[1758116131473,38.01312611,235.31,235.3,1e-08]
[1758116131672,41.94190155,235.31,235.3,1e-08]
[1758116131973,37.69218841,235.31,235.3,1e-08]
[1758116132175,33.76341297,235.31,235.3,1e-08]
[1758116132481,38.01312611,235.31,235.3,1e-08]
[1758116132858,41.94190155,235.31,235.3,1e-08]
[1758116133684,37.69218841,235.31,235.3,1e-08]
[1758116133879,33.74341297,235.31,235.3,1e-08]
[1758116134195,42.61190155,235.31,235.3,1e-08]
[1758116134671,55.35190155,235.31,235.3,1e-08]
[1758116137779,55.37190155,235.31,235.3,1e-08]
[1758116141064,21.20190155,235.31,235.3,1e-08]
[1758116141296,55.37190155,235.31,235.3,1e-08]
[1758116141862,55.40190155,235.31,235.3,1e-08]
[1758116142980,21.92190155,235.31,235.3,1e-08]
[1758116143287,55.40190155,235.31,235.3,1e-08]
[1758116144580,66.02618441,235.31,235.27,1e-08]
[1758116144769,16.66877544,235.28,235.27,1e-08]
[1758116144973,50.41218841,235.28,235.27,1e-08]
[1758116145175,51.10218841,235.28,235.27,1e-08]
[1758116145878,12.74,235.26,235.18,0.68]
[1758116146075,3.92877544,235.19,235.15,0.68]
[1758116146278,3.92877544,235.16,235.11,0.2]
[1758116146490,33.76341297,235.15,235.11,0.2]
[1758116146883,33.76341297,235.15,235.12,0.68]
[1758116147395,33.76341297,235.15,235.13,0.68]
[1758116147597,33.76341297,235.15,235.14,0.68]
[1758116148178,41.94479313,235.15,235.11,0.2]
[1758116148379,3.92877544,235.12,235.11,0.2]
[1758116148579,37.40877544,235.12,235.11,0.2]
[1758116148808,37.69218841,235.12,235.11,0.2]
[1758116149094,33.76341297,235.12,235.11,0.2]
[1758116149279,37.69218841,235.12,235.11,0.2]
[1758116149480,33.76341297,235.12,235.11,0.2]
[1758116149798,37.69218841,235.12,235.11,0.2]
[1758116150186,38.01656029,235.12,235.11,0.2]
[1758116150595,41.94533573,235.12,235.11,0.2]
[1758116151596,42.63533573,235.12,235.11,0.2]
[1758116151790,41.94533573,235.12,235.11,0.2]
[1758116153184,37.69218841,235.12,235.11,0.2]
[1758116153382,0.28341297,235.12,235.11,0.88]
[1758116153596,33.48,235.12,235.11,0.88]
[1758116153787,0.28341297,235.13,235.11,0.88]
[1758116153982,33.48,235.12,235.11,0.2]
[1758116154390,33.48,235.12,235.11,4.12877544]
[1758116154591,33.48,235.12,235.11,4.80877544]
[1758116154884,33.48,235.12,235.11,0.88]
[1758116155287,37.40877544,235.12,235.11,0.2]
[1758116155798,33.48,235.12,235.11,0.88]
[1758116156182,37.73314732,235.12,235.11,0.88]
[1758116156379,37.75314732,235.12,235.11,0.2]
[1758116156597,41.96533573,235.12,235.11,0.2]
[1758116157179,41.96533573,235.12,235.11,0.88]
[1758116157180,33.76341297,235.12,235.11,0.88]
[1758116157481,0.28341297,235.12,235.11,0.88]
[1758116157686,33.48,235.12,235.11,0.88]
[1758116157886,0.28341297,235.15,235.11,0.88]
[1758116158083,0.28341297,235.15,235.12,0.68]
[1758116158288,33.5,235.14,235.12,0.68]
[1758116158503,0.28341297,235.13,235.11,4.12877544]
[1758116158893,33.5,235.12,235.11,4.12877544]
[1758116159699,33.5,235.12,235.11,4.80877544]
[1758116161477,0.28341297,235.16,235.11,4.80877544]
[1758116161690,33.48,235.15,235.13,3.92877544]
[1758116161888,7.35020799,235.17,235.14,4.60877544]
[1758116161889,7.63362096,235.17,235.14,4.60877544]
[1758116162104,33.48,235.16,235.14,4.60877544]
[1758116162405,33.48,235.16,235.15,8.86138016]
[1758116162606,0.28341297,235.23,235.15,8.86138016]
[1758116162790,33.48,235.22,235.21,3.92877544]
[1758116162993,33.48,235.22,235.19,3.92877544]
[1758116163191,0.28341297,235.21,235.19,0.68]
[1758116163786,0.28341297,235.21,235.11,0.2]
[1758116163989,3.92877544,235.18,235.11,0.2]
[1758116164190,33.78341297,235.17,235.12,0.72]
[1758116164497,38.03577769,235.17,235.13,0.72]
[1758116165099,33.78341297,235.17,235.13,4.64877544]
[1758116165400,33.78341297,235.17,235.13,3.92877544]
[1758116165598,38.035675,235.17,235.11,0.2]
[1758116165802,38.035675,235.17,235.12,3.92877544]
[1758116166005,38.035675,235.17,235.12,0.72]
[1758116166188,41.96445044,235.17,235.12,0.72]
[1758116166509,38.035675,235.17,235.12,0.72]
[1758116166710,3.92877544,235.16,235.11,0.2]
[1758116166906,0.28341297,235.15,235.11,0.2]
[1758116167210,33.48,235.14,235.11,0.2]
[1758116167393,0.28341297,235.13,235.11,0.2]
[1758116167598,0.28341297,235.13,235.12,4.64877544]
[1758116167805,33.48,235.14,235.12,4.64877544]
[1758116168004,33.48,235.14,235.12,0.72]
[1758116168209,0.28341297,235.16,235.13,4.64877544]
[1758116168396,33.48,235.15,235.13,4.64877544]
[1758116168597,0.28341297,235.2,235.14,4.64877544]
[1758116168793,33.48,235.19,235.16,3.92877544]
[1758116168991,0.28341297,235.18,235.13,0.72]
[1758116169299,4.63877544,235.17,235.11,0.2]
[1758116169502,0.28341297,235.16,235.11,0.2]
[1758116169699,33.48,235.15,235.12,0.72]
[1758116169910,0.28341297,235.14,235.11,0.2]
[1758116170299,0.28341297,235.14,235.12,0.72]
[1758116170500,0.28341297,235.14,235.11,0.2]
[1758116170811,4.53626071,235.14,235.11,0.2]
[1758116171027,3.92877544,235.12,235.11,0.2]
[1758116171203,4.21218841,235.12,235.11,0.2]
[1758116171401,4.92218841,235.12,235.11,0.2]
[1758116172618,4.92218841,235.12,235.08,0.06]
[1758116172619,14.88664879,235.11,235.08,0.06]
[1758116172818,3.92877544,235.03,234.96,0.72]
[1758116172997,33.78341297,235.02,234.96,4.64877544]
[1758116173592,33.78341297,235.02,234.97,4.64877544]
[1758116173593,0.28341297,235.02,234.97,4.64877544]
[1758116173802,33.52,235.01,234.98,0.72]
[1758116174011,0.28341297,235.0,234.98,0.72]
[1758116174195,0.28341297,235.0,234.94,0.72]
[1758116174414,0.28341297,235.0,234.96,3.92877544]
[1758116174702,3.92877544,234.98,234.89,0.72]
[1758116174899,33.78341297,234.97,234.89,0.72]
[1758116175108,33.78341297,234.97,234.94,3.92877544]
[1758116175321,33.56,234.96,234.91,0.72]
[1758116175526,33.56,234.96,234.93,3.92877544]
[1758116175708,33.56,234.96,234.94,4.64877544]
[1758116175911,33.54,234.95,234.93,3.92877544]
[1758116176227,33.56,234.94,234.77,3.47162126]
[1758116176522,4.25676826,234.92,234.75,48.31591746]
[1758116176729,0.28341297,234.91,234.78,0.72]
[1758116176906,0.28341297,234.91,234.87,3.92877544]
[1758116177104,33.56,234.93,234.9,3.92877544]
[1758116177315,4.25477598,235.03,234.92,3.92877544]
[1758116177515,31.72,235.02,234.93,0.72]
[1758116177715,4.25409412,235.07,234.93,0.72]
[1758116178019,33.58,235.06,235.02,3.92877544]
[1758116178198,0.71,235.05,235.01,3.92877544]
[1758116178392,34.56877544,235.09,235.02,3.92877544]
[1758116178618,34.31,235.08,235.02,3.92877544]
[1758116179004,34.56877544,235.09,234.97,4.97569435]
[1758116179005,33.6,235.07,235.03,0.72]
[1758116179206,33.6,235.07,235.06,3.92877544]
[1758116179524,3.92877544,235.17,235.06,4.64877544]
[1758116179720,33.6,235.16,235.12,3.92877544]